{"text_format":"3","workbook":"xlsx","n_sheets":1,"sheets":["Test Results"],"read":"whole","date_system":"1900"}

{"sheet":"Test Results","index":0,"n_rows":31,"n_cols":12,"rows_kept":31,"merged":[[0,0,0,1],[0,2,0,11],[1,0,1,11],[2,0,2,11],[3,0,3,11],[4,0,4,11]]}
["Radon Testing Results Summary:",null,"[enter site name]"]
["Notes:"]
["• The radon Action Level is 4.0 pCi/L."]
["Legend:"]
["• Test results equal to or greater than the Action Level of 4.0 pCi/L are highlighted in red and precede a \"High\" value in the \"Initial Level\" or \"Final Level\" column."]
["Building Name","Room Description\n(per floor plan)","Initial \nTest Date","Initial Test Kit Serial #","Initial Test Type","Initial Test Result (pCi/L)","Initial Level","Final \nRetest Date","Final Test Kit Serial #","Final Test Type","Final Test Result (pCi/L)","Final Level"]
["[enter building name]","[enter room desc.]","[enter date]","[enter #]","[select]","[enter result]",{"$f":"IFERROR(IF(Test_Results_Summary[[#This Row],[Initial Test Result (pCi/L)]]=\"\",\"\",IF(Test_Results_Summary[[#This Row],[Initial Test Result (pCi/L)]]=\"[enter result]\",\"[autofill]\",IF(ROUND(VALUE(Test_Results_Summary[[#This Row],[Initial Test Result (pCi/L)]]),1)>=4,\"High\",\"Low\"))),\"Low\")","v":"[autofill]"},"[enter date]","[enter #]","[select]","[enter result]",{"$f":"IFERROR(IF(Test_Results_Summary[[#This Row],[Final Test Result (pCi/L)]]=\"\",\"\",IF(Test_Results_Summary[[#This Row],[Final Test Result (pCi/L)]]=\"[enter result]\",\"[autofill]\",IF(ROUND(VALUE(Test_Results_Summary[[#This Row],[Final Test Result (pCi/L)]]),1)>=4,\"High\",\"Low\"))),\"Low\")","v":"[autofill]"}]
[{"$nulls":6},{"$f":"IFERROR(IF(Test_Results_Summary[[#This Row],[Initial Test Result (pCi/L)]]=\"\",\"\",IF(Test_Results_Summary[[#This Row],[Initial Test Result (pCi/L)]]=\"[enter result]\",\"[autofill]\",IF(ROUND(VALUE(Test_Results_Summary[[#This Row],[Initial Test Result (pCi/L)]]),1)>=4,\"High\",\"Low\"))),\"Low\")","v":""},{"$nulls":4},{"$f":"IFERROR(IF(Test_Results_Summary[[#This Row],[Final Test Result (pCi/L)]]=\"\",\"\",IF(Test_Results_Summary[[#This Row],[Final Test Result (pCi/L)]]=\"[enter result]\",\"[autofill]\",IF(ROUND(VALUE(Test_Results_Summary[[#This Row],[Final Test Result (pCi/L)]]),1)>=4,\"High\",\"Low\"))),\"Low\")","v":""}]
[{"$nulls":6},{"$f":"IFERROR(IF(Test_Results_Summary[[#This Row],[Initial Test Result (pCi/L)]]=\"\",\"\",IF(Test_Results_Summary[[#This Row],[Initial Test Result (pCi/L)]]=\"[enter result]\",\"[autofill]\",IF(ROUND(VALUE(Test_Results_Summary[[#This Row],[Initial Test Result (pCi/L)]]),1)>=4,\"High\",\"Low\"))),\"Low\")","v":""},{"$nulls":4},{"$f":"IFERROR(IF(Test_Results_Summary[[#This Row],[Final Test Result (pCi/L)]]=\"\",\"\",IF(Test_Results_Summary[[#This Row],[Final Test Result (pCi/L)]]=\"[enter result]\",\"[autofill]\",IF(ROUND(VALUE(Test_Results_Summary[[#This Row],[Final Test Result (pCi/L)]]),1)>=4,\"High\",\"Low\"))),\"Low\")","v":""}]
[{"$nulls":6},{"$f":"IFERROR(IF(Test_Results_Summary[[#This Row],[Initial Test Result (pCi/L)]]=\"\",\"\",IF(Test_Results_Summary[[#This Row],[Initial Test Result (pCi/L)]]=\"[enter result]\",\"[autofill]\",IF(ROUND(VALUE(Test_Results_Summary[[#This Row],[Initial Test Result (pCi/L)]]),1)>=4,\"High\",\"Low\"))),\"Low\")","v":""},{"$nulls":4},{"$f":"IFERROR(IF(Test_Results_Summary[[#This Row],[Final Test Result (pCi/L)]]=\"\",\"\",IF(Test_Results_Summary[[#This Row],[Final Test Result (pCi/L)]]=\"[enter result]\",\"[autofill]\",IF(ROUND(VALUE(Test_Results_Summary[[#This Row],[Final Test Result (pCi/L)]]),1)>=4,\"High\",\"Low\"))),\"Low\")","v":""}]
[{"$nulls":6},{"$f":"IFERROR(IF(Test_Results_Summary[[#This Row],[Initial Test Result (pCi/L)]]=\"\",\"\",IF(Test_Results_Summary[[#This Row],[Initial Test Result (pCi/L)]]=\"[enter result]\",\"[autofill]\",IF(ROUND(VALUE(Test_Results_Summary[[#This Row],[Initial Test Result (pCi/L)]]),1)>=4,\"High\",\"Low\"))),\"Low\")","v":""},{"$nulls":4},{"$f":"IFERROR(IF(Test_Results_Summary[[#This Row],[Final Test Result (pCi/L)]]=\"\",\"\",IF(Test_Results_Summary[[#This Row],[Final Test Result (pCi/L)]]=\"[enter result]\",\"[autofill]\",IF(ROUND(VALUE(Test_Results_Summary[[#This Row],[Final Test Result (pCi/L)]]),1)>=4,\"High\",\"Low\"))),\"Low\")","v":""}]
[{"$nulls":6},{"$f":"IFERROR(IF(Test_Results_Summary[[#This Row],[Initial Test Result (pCi/L)]]=\"\",\"\",IF(Test_Results_Summary[[#This Row],[Initial Test Result (pCi/L)]]=\"[enter result]\",\"[autofill]\",IF(ROUND(VALUE(Test_Results_Summary[[#This Row],[Initial Test Result (pCi/L)]]),1)>=4,\"High\",\"Low\"))),\"Low\")","v":""},{"$nulls":4},{"$f":"IFERROR(IF(Test_Results_Summary[[#This Row],[Final Test Result (pCi/L)]]=\"\",\"\",IF(Test_Results_Summary[[#This Row],[Final Test Result (pCi/L)]]=\"[enter result]\",\"[autofill]\",IF(ROUND(VALUE(Test_Results_Summary[[#This Row],[Final Test Result (pCi/L)]]),1)>=4,\"High\",\"Low\"))),\"Low\")","v":""}]
[{"$nulls":6},{"$f":"IFERROR(IF(Test_Results_Summary[[#This Row],[Initial Test Result (pCi/L)]]=\"\",\"\",IF(Test_Results_Summary[[#This Row],[Initial Test Result (pCi/L)]]=\"[enter result]\",\"[autofill]\",IF(ROUND(VALUE(Test_Results_Summary[[#This Row],[Initial Test Result (pCi/L)]]),1)>=4,\"High\",\"Low\"))),\"Low\")","v":""},{"$nulls":4},{"$f":"IFERROR(IF(Test_Results_Summary[[#This Row],[Final Test Result (pCi/L)]]=\"\",\"\",IF(Test_Results_Summary[[#This Row],[Final Test Result (pCi/L)]]=\"[enter result]\",\"[autofill]\",IF(ROUND(VALUE(Test_Results_Summary[[#This Row],[Final Test Result (pCi/L)]]),1)>=4,\"High\",\"Low\"))),\"Low\")","v":""}]
[{"$nulls":6},{"$f":"IFERROR(IF(Test_Results_Summary[[#This Row],[Initial Test Result (pCi/L)]]=\"\",\"\",IF(Test_Results_Summary[[#This Row],[Initial Test Result (pCi/L)]]=\"[enter result]\",\"[autofill]\",IF(ROUND(VALUE(Test_Results_Summary[[#This Row],[Initial Test Result (pCi/L)]]),1)>=4,\"High\",\"Low\"))),\"Low\")","v":""},{"$nulls":4},{"$f":"IFERROR(IF(Test_Results_Summary[[#This Row],[Final Test Result (pCi/L)]]=\"\",\"\",IF(Test_Results_Summary[[#This Row],[Final Test Result (pCi/L)]]=\"[enter result]\",\"[autofill]\",IF(ROUND(VALUE(Test_Results_Summary[[#This Row],[Final Test Result (pCi/L)]]),1)>=4,\"High\",\"Low\"))),\"Low\")","v":""}]
[{"$nulls":6},{"$f":"IFERROR(IF(Test_Results_Summary[[#This Row],[Initial Test Result (pCi/L)]]=\"\",\"\",IF(Test_Results_Summary[[#This Row],[Initial Test Result (pCi/L)]]=\"[enter result]\",\"[autofill]\",IF(ROUND(VALUE(Test_Results_Summary[[#This Row],[Initial Test Result (pCi/L)]]),1)>=4,\"High\",\"Low\"))),\"Low\")","v":""},{"$nulls":4},{"$f":"IFERROR(IF(Test_Results_Summary[[#This Row],[Final Test Result (pCi/L)]]=\"\",\"\",IF(Test_Results_Summary[[#This Row],[Final Test Result (pCi/L)]]=\"[enter result]\",\"[autofill]\",IF(ROUND(VALUE(Test_Results_Summary[[#This Row],[Final Test Result (pCi/L)]]),1)>=4,\"High\",\"Low\"))),\"Low\")","v":""}]
[{"$nulls":6},{"$f":"IFERROR(IF(Test_Results_Summary[[#This Row],[Initial Test Result (pCi/L)]]=\"\",\"\",IF(Test_Results_Summary[[#This Row],[Initial Test Result (pCi/L)]]=\"[enter result]\",\"[autofill]\",IF(ROUND(VALUE(Test_Results_Summary[[#This Row],[Initial Test Result (pCi/L)]]),1)>=4,\"High\",\"Low\"))),\"Low\")","v":""},{"$nulls":4},{"$f":"IFERROR(IF(Test_Results_Summary[[#This Row],[Final Test Result (pCi/L)]]=\"\",\"\",IF(Test_Results_Summary[[#This Row],[Final Test Result (pCi/L)]]=\"[enter result]\",\"[autofill]\",IF(ROUND(VALUE(Test_Results_Summary[[#This Row],[Final Test Result (pCi/L)]]),1)>=4,\"High\",\"Low\"))),\"Low\")","v":""}]
[{"$nulls":6},{"$f":"IFERROR(IF(Test_Results_Summary[[#This Row],[Initial Test Result (pCi/L)]]=\"\",\"\",IF(Test_Results_Summary[[#This Row],[Initial Test Result (pCi/L)]]=\"[enter result]\",\"[autofill]\",IF(ROUND(VALUE(Test_Results_Summary[[#This Row],[Initial Test Result (pCi/L)]]),1)>=4,\"High\",\"Low\"))),\"Low\")","v":""},{"$nulls":4},{"$f":"IFERROR(IF(Test_Results_Summary[[#This Row],[Final Test Result (pCi/L)]]=\"\",\"\",IF(Test_Results_Summary[[#This Row],[Final Test Result (pCi/L)]]=\"[enter result]\",\"[autofill]\",IF(ROUND(VALUE(Test_Results_Summary[[#This Row],[Final Test Result (pCi/L)]]),1)>=4,\"High\",\"Low\"))),\"Low\")","v":""}]
[{"$nulls":6},{"$f":"IFERROR(IF(Test_Results_Summary[[#This Row],[Initial Test Result (pCi/L)]]=\"\",\"\",IF(Test_Results_Summary[[#This Row],[Initial Test Result (pCi/L)]]=\"[enter result]\",\"[autofill]\",IF(ROUND(VALUE(Test_Results_Summary[[#This Row],[Initial Test Result (pCi/L)]]),1)>=4,\"High\",\"Low\"))),\"Low\")","v":""},{"$nulls":4},{"$f":"IFERROR(IF(Test_Results_Summary[[#This Row],[Final Test Result (pCi/L)]]=\"\",\"\",IF(Test_Results_Summary[[#This Row],[Final Test Result (pCi/L)]]=\"[enter result]\",\"[autofill]\",IF(ROUND(VALUE(Test_Results_Summary[[#This Row],[Final Test Result (pCi/L)]]),1)>=4,\"High\",\"Low\"))),\"Low\")","v":""}]
[{"$nulls":6},{"$f":"IFERROR(IF(Test_Results_Summary[[#This Row],[Initial Test Result (pCi/L)]]=\"\",\"\",IF(Test_Results_Summary[[#This Row],[Initial Test Result (pCi/L)]]=\"[enter result]\",\"[autofill]\",IF(ROUND(VALUE(Test_Results_Summary[[#This Row],[Initial Test Result (pCi/L)]]),1)>=4,\"High\",\"Low\"))),\"Low\")","v":""},{"$nulls":4},{"$f":"IFERROR(IF(Test_Results_Summary[[#This Row],[Final Test Result (pCi/L)]]=\"\",\"\",IF(Test_Results_Summary[[#This Row],[Final Test Result (pCi/L)]]=\"[enter result]\",\"[autofill]\",IF(ROUND(VALUE(Test_Results_Summary[[#This Row],[Final Test Result (pCi/L)]]),1)>=4,\"High\",\"Low\"))),\"Low\")","v":""}]
[{"$nulls":6},{"$f":"IFERROR(IF(Test_Results_Summary[[#This Row],[Initial Test Result (pCi/L)]]=\"\",\"\",IF(Test_Results_Summary[[#This Row],[Initial Test Result (pCi/L)]]=\"[enter result]\",\"[autofill]\",IF(ROUND(VALUE(Test_Results_Summary[[#This Row],[Initial Test Result (pCi/L)]]),1)>=4,\"High\",\"Low\"))),\"Low\")","v":""},{"$nulls":4},{"$f":"IFERROR(IF(Test_Results_Summary[[#This Row],[Final Test Result (pCi/L)]]=\"\",\"\",IF(Test_Results_Summary[[#This Row],[Final Test Result (pCi/L)]]=\"[enter result]\",\"[autofill]\",IF(ROUND(VALUE(Test_Results_Summary[[#This Row],[Final Test Result (pCi/L)]]),1)>=4,\"High\",\"Low\"))),\"Low\")","v":""}]
[{"$nulls":6},{"$f":"IFERROR(IF(Test_Results_Summary[[#This Row],[Initial Test Result (pCi/L)]]=\"\",\"\",IF(Test_Results_Summary[[#This Row],[Initial Test Result (pCi/L)]]=\"[enter result]\",\"[autofill]\",IF(ROUND(VALUE(Test_Results_Summary[[#This Row],[Initial Test Result (pCi/L)]]),1)>=4,\"High\",\"Low\"))),\"Low\")","v":""},{"$nulls":4},{"$f":"IFERROR(IF(Test_Results_Summary[[#This Row],[Final Test Result (pCi/L)]]=\"\",\"\",IF(Test_Results_Summary[[#This Row],[Final Test Result (pCi/L)]]=\"[enter result]\",\"[autofill]\",IF(ROUND(VALUE(Test_Results_Summary[[#This Row],[Final Test Result (pCi/L)]]),1)>=4,\"High\",\"Low\"))),\"Low\")","v":""}]
[{"$nulls":6},{"$f":"IFERROR(IF(Test_Results_Summary[[#This Row],[Initial Test Result (pCi/L)]]=\"\",\"\",IF(Test_Results_Summary[[#This Row],[Initial Test Result (pCi/L)]]=\"[enter result]\",\"[autofill]\",IF(ROUND(VALUE(Test_Results_Summary[[#This Row],[Initial Test Result (pCi/L)]]),1)>=4,\"High\",\"Low\"))),\"Low\")","v":""},{"$nulls":4},{"$f":"IFERROR(IF(Test_Results_Summary[[#This Row],[Final Test Result (pCi/L)]]=\"\",\"\",IF(Test_Results_Summary[[#This Row],[Final Test Result (pCi/L)]]=\"[enter result]\",\"[autofill]\",IF(ROUND(VALUE(Test_Results_Summary[[#This Row],[Final Test Result (pCi/L)]]),1)>=4,\"High\",\"Low\"))),\"Low\")","v":""}]
[{"$nulls":6},{"$f":"IFERROR(IF(Test_Results_Summary[[#This Row],[Initial Test Result (pCi/L)]]=\"\",\"\",IF(Test_Results_Summary[[#This Row],[Initial Test Result (pCi/L)]]=\"[enter result]\",\"[autofill]\",IF(ROUND(VALUE(Test_Results_Summary[[#This Row],[Initial Test Result (pCi/L)]]),1)>=4,\"High\",\"Low\"))),\"Low\")","v":""},{"$nulls":4},{"$f":"IFERROR(IF(Test_Results_Summary[[#This Row],[Final Test Result (pCi/L)]]=\"\",\"\",IF(Test_Results_Summary[[#This Row],[Final Test Result (pCi/L)]]=\"[enter result]\",\"[autofill]\",IF(ROUND(VALUE(Test_Results_Summary[[#This Row],[Final Test Result (pCi/L)]]),1)>=4,\"High\",\"Low\"))),\"Low\")","v":""}]
[{"$nulls":6},{"$f":"IFERROR(IF(Test_Results_Summary[[#This Row],[Initial Test Result (pCi/L)]]=\"\",\"\",IF(Test_Results_Summary[[#This Row],[Initial Test Result (pCi/L)]]=\"[enter result]\",\"[autofill]\",IF(ROUND(VALUE(Test_Results_Summary[[#This Row],[Initial Test Result (pCi/L)]]),1)>=4,\"High\",\"Low\"))),\"Low\")","v":""},{"$nulls":4},{"$f":"IFERROR(IF(Test_Results_Summary[[#This Row],[Final Test Result (pCi/L)]]=\"\",\"\",IF(Test_Results_Summary[[#This Row],[Final Test Result (pCi/L)]]=\"[enter result]\",\"[autofill]\",IF(ROUND(VALUE(Test_Results_Summary[[#This Row],[Final Test Result (pCi/L)]]),1)>=4,\"High\",\"Low\"))),\"Low\")","v":""}]
[{"$nulls":6},{"$f":"IFERROR(IF(Test_Results_Summary[[#This Row],[Initial Test Result (pCi/L)]]=\"\",\"\",IF(Test_Results_Summary[[#This Row],[Initial Test Result (pCi/L)]]=\"[enter result]\",\"[autofill]\",IF(ROUND(VALUE(Test_Results_Summary[[#This Row],[Initial Test Result (pCi/L)]]),1)>=4,\"High\",\"Low\"))),\"Low\")","v":""},{"$nulls":4},{"$f":"IFERROR(IF(Test_Results_Summary[[#This Row],[Final Test Result (pCi/L)]]=\"\",\"\",IF(Test_Results_Summary[[#This Row],[Final Test Result (pCi/L)]]=\"[enter result]\",\"[autofill]\",IF(ROUND(VALUE(Test_Results_Summary[[#This Row],[Final Test Result (pCi/L)]]),1)>=4,\"High\",\"Low\"))),\"Low\")","v":""}]
[{"$nulls":6},{"$f":"IFERROR(IF(Test_Results_Summary[[#This Row],[Initial Test Result (pCi/L)]]=\"\",\"\",IF(Test_Results_Summary[[#This Row],[Initial Test Result (pCi/L)]]=\"[enter result]\",\"[autofill]\",IF(ROUND(VALUE(Test_Results_Summary[[#This Row],[Initial Test Result (pCi/L)]]),1)>=4,\"High\",\"Low\"))),\"Low\")","v":""},{"$nulls":4},{"$f":"IFERROR(IF(Test_Results_Summary[[#This Row],[Final Test Result (pCi/L)]]=\"\",\"\",IF(Test_Results_Summary[[#This Row],[Final Test Result (pCi/L)]]=\"[enter result]\",\"[autofill]\",IF(ROUND(VALUE(Test_Results_Summary[[#This Row],[Final Test Result (pCi/L)]]),1)>=4,\"High\",\"Low\"))),\"Low\")","v":""}]
[{"$nulls":6},{"$f":"IFERROR(IF(Test_Results_Summary[[#This Row],[Initial Test Result (pCi/L)]]=\"\",\"\",IF(Test_Results_Summary[[#This Row],[Initial Test Result (pCi/L)]]=\"[enter result]\",\"[autofill]\",IF(ROUND(VALUE(Test_Results_Summary[[#This Row],[Initial Test Result (pCi/L)]]),1)>=4,\"High\",\"Low\"))),\"Low\")","v":""},{"$nulls":4},{"$f":"IFERROR(IF(Test_Results_Summary[[#This Row],[Final Test Result (pCi/L)]]=\"\",\"\",IF(Test_Results_Summary[[#This Row],[Final Test Result (pCi/L)]]=\"[enter result]\",\"[autofill]\",IF(ROUND(VALUE(Test_Results_Summary[[#This Row],[Final Test Result (pCi/L)]]),1)>=4,\"High\",\"Low\"))),\"Low\")","v":""}]
[{"$nulls":6},{"$f":"IFERROR(IF(Test_Results_Summary[[#This Row],[Initial Test Result (pCi/L)]]=\"\",\"\",IF(Test_Results_Summary[[#This Row],[Initial Test Result (pCi/L)]]=\"[enter result]\",\"[autofill]\",IF(ROUND(VALUE(Test_Results_Summary[[#This Row],[Initial Test Result (pCi/L)]]),1)>=4,\"High\",\"Low\"))),\"Low\")","v":""},{"$nulls":4},{"$f":"IFERROR(IF(Test_Results_Summary[[#This Row],[Final Test Result (pCi/L)]]=\"\",\"\",IF(Test_Results_Summary[[#This Row],[Final Test Result (pCi/L)]]=\"[enter result]\",\"[autofill]\",IF(ROUND(VALUE(Test_Results_Summary[[#This Row],[Final Test Result (pCi/L)]]),1)>=4,\"High\",\"Low\"))),\"Low\")","v":""}]
[{"$nulls":6},{"$f":"IFERROR(IF(Test_Results_Summary[[#This Row],[Initial Test Result (pCi/L)]]=\"\",\"\",IF(Test_Results_Summary[[#This Row],[Initial Test Result (pCi/L)]]=\"[enter result]\",\"[autofill]\",IF(ROUND(VALUE(Test_Results_Summary[[#This Row],[Initial Test Result (pCi/L)]]),1)>=4,\"High\",\"Low\"))),\"Low\")","v":""},{"$nulls":4},{"$f":"IFERROR(IF(Test_Results_Summary[[#This Row],[Final Test Result (pCi/L)]]=\"\",\"\",IF(Test_Results_Summary[[#This Row],[Final Test Result (pCi/L)]]=\"[enter result]\",\"[autofill]\",IF(ROUND(VALUE(Test_Results_Summary[[#This Row],[Final Test Result (pCi/L)]]),1)>=4,\"High\",\"Low\"))),\"Low\")","v":""}]
[{"$nulls":6},{"$f":"IFERROR(IF(Test_Results_Summary[[#This Row],[Initial Test Result (pCi/L)]]=\"\",\"\",IF(Test_Results_Summary[[#This Row],[Initial Test Result (pCi/L)]]=\"[enter result]\",\"[autofill]\",IF(ROUND(VALUE(Test_Results_Summary[[#This Row],[Initial Test Result (pCi/L)]]),1)>=4,\"High\",\"Low\"))),\"Low\")","v":""},{"$nulls":4},{"$f":"IFERROR(IF(Test_Results_Summary[[#This Row],[Final Test Result (pCi/L)]]=\"\",\"\",IF(Test_Results_Summary[[#This Row],[Final Test Result (pCi/L)]]=\"[enter result]\",\"[autofill]\",IF(ROUND(VALUE(Test_Results_Summary[[#This Row],[Final Test Result (pCi/L)]]),1)>=4,\"High\",\"Low\"))),\"Low\")","v":""}]
[{"$nulls":6},{"$f":"IFERROR(IF(Test_Results_Summary[[#This Row],[Initial Test Result (pCi/L)]]=\"\",\"\",IF(Test_Results_Summary[[#This Row],[Initial Test Result (pCi/L)]]=\"[enter result]\",\"[autofill]\",IF(ROUND(VALUE(Test_Results_Summary[[#This Row],[Initial Test Result (pCi/L)]]),1)>=4,\"High\",\"Low\"))),\"Low\")","v":""},{"$nulls":4},{"$f":"IFERROR(IF(Test_Results_Summary[[#This Row],[Final Test Result (pCi/L)]]=\"\",\"\",IF(Test_Results_Summary[[#This Row],[Final Test Result (pCi/L)]]=\"[enter result]\",\"[autofill]\",IF(ROUND(VALUE(Test_Results_Summary[[#This Row],[Final Test Result (pCi/L)]]),1)>=4,\"High\",\"Low\"))),\"Low\")","v":""}]